bitfinex/quotes_SOLUSD_20251202
["timestamp","ask_amount","ask_price","bid_price","bid_amount"]
[1764693699613,0.69,139.26,139.25,0.2]
[1764693699835,15.59927301,139.26,139.25,0.2]
[1764693700844,22.78008587,139.26,139.25,0.2]
[1764693701046,23.69927301,139.26,139.25,0.2]
[1764693701248,30.88008587,139.26,139.25,0.2]
[1764693704449,22.78008587,139.26,139.25,0.2]
[1764693704657,30.88008587,139.26,139.25,0.2]
[1764693706222,30.19008587,139.26,139.25,0.2]
[1764693706429,30.90008587,139.26,139.25,0.2]
[1764693708134,30.90008587,139.26,139.25,1e-08]
[1764693708354,24.94274155,139.26,139.25,1e-08]
[1764693711252,15.28081286,139.26,139.25,1e-08]
[1764693711456,24.94274155,139.26,139.24,1e-08]
[1764693711752,8.95192869,139.25,139.21,0.2]
[1764693711941,78.32872982,139.26,139.21,0.2]
[1764693712147,0.71,139.25,139.21,0.2]
[1764693712349,8.95192869,139.22,139.21,0.2]
[1764693713153,8.1,139.24,139.21,0.2]
[1764693713361,8.95192869,139.22,139.21,0.2]
[1764693713563,16.13480471,139.22,139.21,0.2]
[1764693714209,16.84480471,139.22,139.21,0.2]
[1764693714349,16.13480471,139.22,139.21,0.2]
[1764693716456,7.89287602,139.22,139.21,0.2]
[1764693716636,16.84480471,139.22,139.21,0.2]
[1764693719070,16.84480471,139.22,139.16,0.86]
[1764693719071,7.89287602,139.22,139.16,0.86]
[1764693719272,8.95192869,139.19,139.16,0.86]
[1764693719464,7.89287602,139.22,139.16,0.86]
[1764693719465,17.05192869,139.18,139.16,0.86]
[1764693719661,8.95192869,139.17,139.16,0.2]
[1764693719849,8.1,139.18,139.16,0.2]
[1764693720057,17.05192869,139.18,139.16,0.2]
[1764693720265,8.95192869,139.17,139.16,0.2]
[1764693720451,8.95192869,139.17,139.16,0.86]
[1764693720653,8.95192869,139.17,139.16,0.2]
[1764693720959,8.1,139.18,139.16,0.86]
[1764693721157,54.92242424,162.58,139.16,9.81192869]
[1764693721158,0.71,139.26,139.16,9.81192869]
[1764693721463,8.95192869,139.22,139.17,0.66]
[1764693721729,8.1,139.22,139.18,7.18494036]
[1764693721852,17.05192869,139.22,139.18,7.18494036]
[1764693722178,8.95192869,139.21,139.19,0.66]
[1764693722352,17.05192869,139.22,139.19,0.66]
[1764693722750,8.95192869,139.25,139.19,9.61192869]
[1764693722954,8.1,139.24,139.19,9.61192869]
[1764693723172,8.1,139.24,139.2,0.66]
[1764693723362,17.05192869,139.24,139.2,0.66]
[1764693723564,17.05192869,139.24,139.21,7.18339199]
[1764693723757,8.1,139.24,139.21,7.18339199]
[1764693724078,8.1,139.24,139.22,0.66]
[1764693724863,0.71,139.32,139.22,16.79432172]
[1764693725063,8.1,139.31,139.23,8.95192869]
[1764693725282,8.95192869,139.3,139.23,9.61192869]
[1764693725489,8.95192869,139.28,139.24,0.66]
[1764693725692,8.1,139.29,139.24,0.66]
[1764693726197,8.1,139.29,139.24,9.61192869]
[1764693726384,8.1,139.29,139.24,0.66]
[1764693726699,8.1,139.29,139.25,0.66]
[1764693726898,8.1,139.29,139.26,7.18081286]
[1764693727287,8.95192869,139.28,139.26,0.66]
[1764693727600,8.95192869,139.28,139.27,0.66]
[1764693727789,17.05192869,139.29,139.27,0.66]
[1764693728297,24.23125573,139.29,139.27,0.66]
[1764693728594,9.66192869,139.28,139.21,0.66]
[1764693728799,8.95192869,139.22,139.18,7.18491042]
[1764693728987,8.95192869,139.2,139.17,0.66]
[1764693729192,8.95192869,139.2,139.17,7.84531488]
[1764693729499,8.95192869,139.21,139.18,0.66]
[1764693729974,15.28321885,139.22,139.18,0.66]
[1764693729975,8.95192869,139.2,139.18,0.66]
[1764693731077,8.95192869,139.2,139.18,7.84485462]
[1764693731395,8.1,139.22,139.18,7.84485462]
[1764693731602,8.1,139.22,139.19,0.66]
[1764693731806,17.05192869,139.22,139.19,0.66]
[1764693732174,8.95192869,139.21,139.19,0.66]
[1764693732996,16.13537198,139.21,139.19,0.66]
[1764693733210,8.95192869,139.2,139.19,0.66]
[1764693733508,8.95192869,139.2,139.16,8.10580714]
[1764693733677,8.1,139.22,139.17,0.72]
[1764693733884,8.1,139.21,139.17,0.72]
[1764693734304,26.19192869,139.38,139.17,0.72]
[1764693734305,35.8921792,139.31,139.19,8.95192869]
[1764693734515,0.7,139.31,139.24,8.95192869]
[1764693734802,8.95192869,139.28,139.21,8.95192869]
[1764693734997,8.1,139.3,139.21,8.95192869]
[1764693734998,8.95192869,139.26,139.21,7.18339199]
[1764693735185,8.95192869,139.26,139.22,0.72]
[1764693735382,8.95192869,139.25,139.22,0.72]
[1764693735601,17.05192869,139.26,139.22,0.72]
[1764693735914,8.95192869,139.25,139.22,0.72]
[1764693736496,8.95192869,139.23,139.17,0.72]
[1764693736692,8.95192869,139.2,139.17,0.72]
[1764693737111,8.95192869,139.21,139.17,7.90495236]
[1764693737298,15.28317294,139.22,139.17,7.90495236]
[1764693737598,8.95192869,139.21,139.18,0.72]
[1764693739107,8.95192869,139.21,139.18,7.90482116]
[1764693739305,8.95192869,139.22,139.18,7.90482116]
[1764693739484,8.95192869,139.19,139.16,0.2]
[1764693739683,0.7,139.21,139.16,0.2]
[1764693739684,8.1,139.18,139.16,0.2]
[1764693740195,8.95192869,139.17,139.16,0.2]
[1764693740807,8.8,139.18,139.16,0.2]
[1764693741008,8.95192869,139.17,139.16,0.2]
[1764693741703,0.7,139.22,139.16,0.92]
[1764693741903,8.95192869,139.2,139.16,0.92]
[1764693742083,8.95192869,139.19,139.16,0.92]
[1764693743206,17.05192869,139.21,139.17,0.72]
[1764693743704,8.95192869,139.21,139.17,7.9049742]
[1764693743896,17.05192869,139.21,139.17,7.9049742]
[1764693744095,17.05192869,139.21,139.18,0.72]
[1764693745506,8.1,139.21,139.18,0.72]
[1764693745710,15.28373533,139.21,139.18,0.72]
[1764693745887,8.1,139.21,139.18,0.72]
[1764693746089,8.1,139.21,139.18,7.90493302]
[1764693746806,17.05192869,139.21,139.16,7.38582586]
[1764693747007,8.95192869,139.19,139.16,0.92]
[1764693747311,17.05192869,139.18,139.16,0.2]
[1764693747500,8.95192869,139.17,139.16,0.2]
[1764693747700,9.65192869,139.17,139.16,0.2]
[1764693747901,16.83738532,139.17,139.16,0.2]
[1764693749719,15.35392323,139.17,139.16,0.2]
[1764693751745,15.35392323,139.17,139.11,0.2]
[1764693751746,69.24484798,139.17,139.11,0.2]
[1764693751901,7.4684666,139.12,139.11,0.2]
[1764693752101,15.5684666,139.12,139.11,0.2]
[1764693752413,16.2684666,139.12,139.11,0.2]
[1764693752721,8.8,139.12,139.11,0.2]
[1764693752920,8.1,139.12,139.11,0.2]
[1764693753102,15.5684666,139.12,139.11,0.2]
[1764693753514,8.1,139.12,139.11,0.2]
[1764693753719,8.1,139.12,139.11,0.88]
[1764693756930,8.1,139.12,139.11,0.2]
[1764693757404,8.1,139.12,139.11,0.88]
[1764693757934,104.5,139.37,139.11,15.40053457]
[1764693758107,7.33197876,139.2,139.14,7.33197876]
[1764693758308,8.1,139.19,139.15,7.33197876]
[1764693758516,7.33197876,139.18,139.12,8.01197876]
[1764693758715,15.43197876,139.19,139.13,7.33197876]
[1764693759037,8.1,139.19,139.14,8.01197876]
[1764693759629,8.1,139.19,139.15,0.68]
[1764693759842,7.33197876,139.18,139.15,0.68]
[1764693760028,43.22267424,139.32,139.16,14.51795174]
[1764693760233,7.33197876,139.23,139.16,7.18597298]
[1764693760537,8.1,139.22,139.17,8.01197876]
[1764693760742,8.1,139.22,139.18,7.33197876]
[1764693760905,7.33197876,139.25,139.19,7.33197876]
[1764693761104,15.43197876,139.25,139.19,8.01197876]
[1764693761333,15.43197876,139.25,139.2,0.68]
[1764693761508,8.1,139.25,139.2,8.01197876]
[1764693761928,8.1,139.25,139.21,0.71]
[1764693762435,22.61360089,139.25,139.21,7.89319851]
[1764693762628,22.61360089,139.25,139.21,0.71]
[1764693762948,22.61360089,139.25,139.22,0.71]
[1764693763108,7.33197876,139.24,139.2,0.71]
[1764693763716,22.61360089,139.25,139.2,0.71]
[1764693764016,8.1,139.25,139.2,7.89341649]
[1764693764246,14.51289524,139.26,139.2,15.22539525]
[1764693764435,22.61289524,139.26,139.21,0.71]
[1764693764641,15.28091648,139.26,139.21,0.71]
[1764693764817,22.61289524,139.26,139.21,0.71]
[1764693765222,22.61289524,139.26,139.17,7.33197876]
[1764693765223,7.33197876,139.24,139.17,7.33197876]
[1764693765537,0.67,139.25,139.19,0.71]
[1764693765538,7.33197876,139.22,139.19,0.71]
[1764693766135,7.33197876,139.23,139.19,0.71]
[1764693766638,7.33197876,139.22,139.19,0.71]
[1764693767315,7.33197876,139.22,139.19,7.8939801]
[1764693767951,7.33197876,139.22,139.2,0.71]
[1764693768231,7.33197876,139.22,139.18,7.1847631]
[1764693768232,14.51494169,139.22,139.18,7.1847631]
[1764693768448,7.33197876,139.21,139.18,7.1847631]
[1764693768612,7.33197876,139.21,139.19,0.71]
[1764693770340,22.59494169,139.22,139.19,0.71]
[1764693770549,27.72979717,139.22,139.19,0.71]
[1764693770712,12.46683424,139.21,139.19,0.71]
[1764693770912,12.46683424,139.2,139.17,7.18527665]
[1764693771225,12.46683424,139.19,139.16,7.89594314]
[1764693771415,12.46683424,139.19,139.17,0.71]
[1764693771941,15.26288532,139.22,139.16,12.46683424]
[1764693772115,12.46683424,139.2,139.15,0.71]
[1764693772438,12.46683424,139.19,139.15,0.71]
[1764693773241,12.46683424,139.17,139.15,0.71]
[1764693773446,0.67,139.19,139.11,0.2]
[1764693773447,20.54683424,139.16,139.11,0.2]
[1764693773740,12.46683424,139.12,139.11,0.2]
[1764693773940,20.54683424,139.12,139.11,0.2]
[1764693775337,21.21683424,139.12,139.11,0.2]
[1764693775538,28.40487334,139.12,139.11,0.2]
[1764693775840,8.75,139.12,139.11,0.2]
[1764693776026,21.21683424,139.12,139.11,0.2]
[1764693776535,28.40487334,139.12,139.11,0.2]
[1764693778635,20.54683424,139.12,139.11,0.2]
[1764693779139,21.21683424,139.12,139.11,0.2]
[1764693780468,28.40487334,139.12,139.04,0.2]
[1764693780746,12.46683424,139.05,139.04,0.2]
[1764693781045,20.54683424,139.05,139.04,0.2]
[1764693781248,21.21683424,139.05,139.04,0.2]
[1764693781451,12.46683424,139.02,139.0,3.0]
[1764693781647,20.54683424,139.02,139.0,3.0]
[1764693781824,13.13683424,139.02,139.0,3.0]
[1764693782155,21.21683424,139.02,139.0,3.0]
[1764693782351,21.21683424,139.02,138.97,0.2]
[1764693782352,0.67,139.01,138.97,0.2]
[1764693782534,12.46683424,138.98,138.93,0.2]
[1764693782849,12.46683424,138.94,138.93,0.2]
[1764693783048,20.54683424,138.94,138.93,0.2]
[1764693783228,21.11683424,138.94,138.93,0.2]
[1764693784131,25.17985611,139.0,138.93,0.2]
[1764693784355,12.46683424,138.94,138.93,0.2]
[1764693784546,8.08,138.94,138.93,0.2]
[1764693784727,12.46683424,138.94,138.93,0.2]
[1764693784930,20.56683424,138.94,138.93,0.2]
[1764693785124,8.1,138.94,138.93,0.2]
[1764693785329,20.56683424,138.94,138.93,0.2]
[1764693785530,8.1,138.94,138.93,0.91]
[1764693785728,41.59593766,139.17,138.93,26.10250212]
[1764693785930,12.46683424,139.01,138.95,12.46683424]
[1764693786137,20.56683424,139.0,138.94,13.17683424]
[1764693786540,12.46683424,138.99,138.95,7.90683339]
[1764693786854,12.46683424,138.98,138.95,0.71]
[1764693787052,8.1,138.97,138.94,7.19724904]
[1764693787234,20.56683424,138.96,138.93,0.2]
[1764693787439,12.46683424,138.95,138.93,0.2]
[1764693787637,8.1,138.96,138.93,0.2]
[1764693788045,8.1,138.95,138.93,0.2]
[1764693788254,8.1,138.95,138.93,7.39776409]
[1764693788926,8.1,138.95,138.94,0.71]
[1764693789333,8.1,138.96,138.94,0.71]
[1764693790530,8.1,138.96,138.93,18.19467357]
[1764693790742,12.46683424,138.94,138.93,0.2]
[1764693791765,13.16683424,138.94,138.93,0.2]
[1764693792563,25.63366848,138.94,138.91,0.2]
[1764693792864,12.46683424,138.92,138.83,0.68]
[1764693793074,12.46683424,138.89,138.83,0.68]
[1764693793464,13.16683424,138.89,138.81,7.40395568]
[1764693793654,21.26683424,138.89,138.83,0.68]
[1764693793855,21.26683424,138.89,138.83,7.88263041]
[1764693794278,12.46683424,138.89,138.82,12.46683424]
[1764693794576,12.46683424,138.89,138.86,0.68]
[1764693794577,20.56683424,138.89,138.86,0.68]
[1764693794774,20.56683424,138.89,138.87,7.20061867]
[1764693794964,20.56683424,138.89,138.86,0.68]
[1764693795275,8.1,138.89,138.88,1.31651559]
[1764693795574,8.1,138.89,138.88,0.63651559]
[1764693795958,12.46683424,138.89,138.88,0.63651559]
[1764693796166,20.56683424,138.89,138.88,0.63651559]
[1764693796477,27.76677664,138.89,138.88,0.63651559]
[1764693796673,20.56683424,138.89,138.88,0.63651559]
[1764693797178,27.76677664,138.89,138.88,0.63651559]
[1764693798257,20.56683424,138.89,138.88,0.63651559]
[1764693799249,30.46204745,138.93,138.88,1.31651559]
[1764693799250,17.99521321,138.93,138.88,1.31651559]
[1764693799468,12.46683424,138.89,138.88,1.31651559]
[1764693799674,20.56683424,138.89,138.88,0.63651559]
[1764693799859,8.1,138.89,138.88,0.63651559]
[1764693800066,7.19838756,138.92,138.88,1.31651559]
[1764693800264,12.46683424,138.9,138.88,1.31651559]
[1764693800477,12.46683424,138.9,138.88,7.83683892]
[1764693800656,12.46683424,138.9,138.89,0.68]
[1764693801370,12.46683424,138.9,138.88,0.63651559]
[1764693801575,12.46683424,138.89,138.88,0.63651559]
[1764693802362,8.1,138.89,138.88,1.31651559]
[1764693802687,8.1,138.9,138.88,8.51689272]
[1764693802879,8.1,138.91,138.89,0.68]
[1764693803286,8.1,138.91,138.9,7.19942404]
[1764693803884,8.1,138.91,138.9,0.68]
[1764693804578,12.46683424,138.94,138.9,0.68]
[1764693804881,20.56683424,138.93,138.9,0.68]
[1764693805065,20.56683424,138.92,138.9,0.68]
[1764693805668,8.1,138.91,138.9,0.68]
[1764693806063,20.56683424,138.91,138.88,0.63651559]
[1764693806263,8.1,138.91,138.88,1.31651559]
[1764693806588,8.1,138.91,138.88,0.63651559]
[1764693806589,12.46683424,138.89,138.88,0.63651559]
[1764693807188,13.16683424,138.89,138.88,0.63651559]
[1764693807566,20.36677664,138.89,138.88,0.63651559]
[1764693807766,7.1994668,138.9,138.88,0.63651559]
[1764693807966,20.56683424,138.89,138.88,0.63651559]
[1764693808487,21.26683424,138.89,138.88,0.63651559]
[1764693809755,28.46677664,138.89,138.88,0.63651559]
[1764693810363,7.8999424,138.89,138.88,0.63651559]
[1764693810585,27.76677664,138.89,138.88,0.63651559]
[1764693810987,28.46677664,138.89,138.88,0.63651559]
[1764693811693,27.76677664,138.89,138.88,0.63651559]
[1764693815268,28.46677664,138.89,138.88,0.63651559]
[1764693815774,28.46677664,138.89,138.88,1e-08]
[1764693816168,7.1999424,138.89,138.88,1e-08]
[1764693816372,15.2999424,138.89,138.88,1e-08]
[1764693816582,27.76677664,138.89,138.88,1e-08]
[1764693816884,19.66677664,138.89,138.88,1e-08]
[1764693817068,27.76677664,138.89,138.88,1e-08]
[1764693818288,28.48677664,138.89,138.88,1e-08]
[1764693820188,12.46683424,138.89,138.88,1e-08]
[1764693820389,20.56683424,138.89,138.88,1e-08]
[1764693820684,21.28683424,138.89,138.81,0.2]
[1764693820885,12.46683424,138.82,138.81,8.07408666]
[1764693821062,20.56683424,138.82,138.81,0.87]
[1764693821787,20.56683424,138.82,138.81,8.07409192]
[1764693823089,20.56683424,138.82,138.81,0.87]
[1764693823476,20.56683424,138.82,138.81,8.07409192]
[1764693823668,20.56683424,138.82,138.81,0.87]
[1764693824073,27.77040721,138.82,138.81,0.2]
[1764693825194,40.95724145,138.82,138.81,0.2]
[1764693825370,12.46683424,138.8,138.79,0.2]
[1764693825670,27.77144519,138.8,138.79,0.2]
[1764693826100,28.49144519,138.8,138.79,1e-08]
[1764693826270,46.50297256,138.8,138.74,0.2]
[1764693826474,12.46683424,138.75,138.74,0.2]
[1764693826832,20.56683424,138.75,138.74,0.2]
[1764693826990,21.28683424,138.75,138.74,0.2]
[1764693827187,8.82,138.75,138.74,0.2]
[1764693827382,20.56683424,138.75,138.74,0.2]
[1764693827572,27.77404144,138.75,138.74,0.2]
[1764693827776,28.49404144,138.75,138.74,0.2]
[1764693828981,15.3072072,138.75,138.74,0.2]
[1764693829185,27.77404144,138.75,138.74,0.2]
[1764693829896,28.49404144,138.75,138.74,0.2]
[1764693830587,27.77404144,138.75,138.74,0.2]
[1764693830793,28.49404144,138.75,138.74,0.2]
[1764693831086,27.77404144,138.75,138.74,0.2]
[1764693831293,28.49404144,138.75,138.74,0.2]
[1764693832207,46.51205945,138.75,138.68,0.67]
[1764693832418,7.37939951,138.69,138.68,0.67]
[1764693832577,8.1,138.69,138.68,7.88084511]
[1764693833288,8.1,138.69,138.68,0.67]
[1764693833610,8.1,138.69,138.68,7.88084511]
[1764693834106,15.47939951,138.69,138.68,0.67]
[1764693835109,15.47939951,138.69,138.67,0.2]
[1764693835309,7.37939951,138.68,138.67,0.87]
[1764693835510,7.37939951,138.68,138.67,0.2]
[1764693836009,14.59024462,138.68,138.67,0.2]
[1764693836406,22.69024462,138.68,138.67,0.2]
[1764693837913,23.41024462,138.68,138.67,0.2]
[1764693838884,22.69024462,138.68,138.67,0.2]
[1764693839299,23.41024462,138.68,138.67,0.2]
[1764693839898,23.41024462,138.68,138.66,0.2]
[1764693840094,8.09939951,138.67,138.66,0.2]
[1764693840722,7.37939951,138.67,138.66,0.2]
[1764693841418,15.47939951,138.67,138.66,0.2]
[1764693842113,15.47939951,138.67,138.66,0.87]
[1764693842828,7.37939951,138.69,138.66,0.87]
[1764693842989,8.1,138.71,138.67,0.67]
[1764693843193,15.47939951,138.71,138.67,0.67]
[1764693843395,7.37939951,138.68,138.67,0.67]
[1764693843609,15.47939951,138.68,138.67,0.67]
[1764693843989,22.69024462,138.68,138.67,0.67]
[1764693844391,7.37939951,138.68,138.67,0.67]
[1764693844619,15.47939951,138.68,138.67,0.67]
[1764693845217,7.37939951,138.68,138.67,0.67]
[1764693845514,15.47939951,138.68,138.67,0.67]
[1764693845706,7.37939951,138.68,138.67,7.88136511]
[1764693845909,8.1,138.68,138.67,7.88136511]
[1764693846425,15.47939951,138.68,138.67,0.67]
[1764693847130,22.69024462,138.68,138.67,0.67]
[1764693847307,15.47939951,138.68,138.67,0.67]
[1764693848023,15.47939951,138.68,138.66,0.2]
[1764693848024,23.41024462,138.68,138.66,0.2]
[1764693848314,7.37939951,138.67,138.66,0.2]
[1764693849721,8.09939951,138.67,138.64,0.2]
[1764693850033,7.37939951,138.65,138.62,0.2]
[1764693850195,0.72,138.66,138.59,0.2]
[1764693850196,14.75879902,138.63,138.59,0.2]
[1764693850396,14.75879902,138.6,138.59,0.2]
[1764693850621,22.85879902,138.6,138.59,0.2]
[1764693850793,15.47939951,138.6,138.59,0.87]
[1764693852018,8.1,138.6,138.59,8.08552781]
[1764693852517,15.47939951,138.6,138.59,0.87]
[1764693853516,15.47939951,138.6,138.59,8.08552781]
[1764693853717,7.21259073,138.65,138.59,8.08552781]
[1764693853920,7.37939951,138.61,138.6,0.71]
[1764693854224,7.37939951,138.61,138.6,7.92500721]
[1764693854525,7.37939951,138.62,138.6,7.92500721]
[1764693854825,7.37939951,138.64,138.61,0.71]
[1764693855032,7.37939951,138.63,138.61,0.71]
[1764693855404,7.37939951,138.62,138.59,0.91]
[1764693855707,8.1,138.64,138.59,0.2]
[1764693855907,8.1,138.64,138.6,0.71]
[1764693856110,15.3131764,138.64,138.6,0.71]
[1764693856710,7.37939951,138.61,138.6,0.71]
[1764693857221,7.37939951,138.61,138.59,0.2]
[1764693857430,15.47939951,138.6,138.59,0.2]
[1764693857615,22.85879902,138.6,138.59,0.2]
[1764693858329,30.07380623,138.6,138.59,0.2]
[1764693859239,7.37939951,138.6,138.59,0.2]
[1764693859405,15.47939951,138.6,138.59,0.91]
[1764693861335,8.1,138.6,138.59,8.12552781]
[1764693861832,15.47939951,138.6,138.59,0.91]
[1764693862929,15.47939951,138.6,138.59,0.2]
[1764693863138,22.69440672,138.6,138.59,0.2]
[1764693863932,15.47939951,138.6,138.59,0.2]
[1764693864233,15.47939951,138.6,138.59,0.91]
[1764693864920,15.47939951,138.6,138.59,0.2]
[1764693865320,8.1,138.6,138.59,0.91]
[1764693865522,15.47939951,138.6,138.59,8.12552781]
[1764693865919,8.1,138.6,138.59,8.12552781]
[1764693866120,15.47939951,138.6,138.59,8.12552781]
[1764693868009,15.47939951,138.61,138.59,8.12552781]
[1764693868214,0.72,138.68,138.6,0.71]
[1764693868430,7.37939951,138.64,138.6,0.71]
[1764693868628,15.47939951,138.64,138.6,0.71]
[1764693868937,7.21032038,138.7,138.6,8.08939951]
[1764693869131,7.37939951,138.67,138.6,8.08939951]
[1764693869336,7.37939951,138.67,138.61,0.71]
[1764693869522,15.47939951,138.67,138.61,0.71]
[1764693869729,7.37939951,138.64,138.61,0.71]
[1764693870034,8.1,138.67,138.62,7.21396623]
[1764693870232,7.37939951,138.66,138.63,0.71]
[1764693870419,7.37939951,138.64,138.63,0.71]
[1764693870822,7.37939951,138.64,138.6,0.71]
[1764693871031,7.37939951,138.61,138.59,0.2]
[1764693871236,7.37939951,138.61,138.59,7.41547714]
[1764693871445,7.37939951,138.6,138.59,0.2]
[1764693872123,0.72,138.64,138.59,0.2]
[1764693872337,0.72,138.64,138.59,0.91]
[1764693872338,7.37939951,138.64,138.59,0.91]
[1764693872514,7.37939951,138.63,138.59,0.91]
[1764693872843,7.37939951,138.64,138.6,0.71]
[1764693873135,7.37939951,138.65,138.6,0.71]
[1764693873343,8.1,138.66,138.6,0.71]
[1764693873344,7.37939951,138.64,138.6,0.71]
[1764693873843,7.37939951,138.63,138.6,0.71]
[1764693874138,8.1,138.65,138.6,25.9620533]
[1764693874367,7.37939951,138.64,138.6,25.9620533]
[1764693874516,7.37939951,138.64,138.61,0.68]
[1764693874842,7.37939951,138.63,138.61,0.68]
[1764693875048,7.37939951,138.62,138.61,0.68]
[1764693875343,8.1,138.65,138.61,0.68]
[1764693875513,7.37939951,138.63,138.61,0.68]
[1764693875926,7.37939951,138.64,138.61,0.68]
[1764693876153,8.1,138.65,138.62,7.21396623]
[1764693876338,7.37939951,138.64,138.62,7.21396623]
[1764693876651,7.37939951,138.64,138.63,0.68]
[1764693877853,8.1,138.68,138.63,7.89324441]
[1764693878042,7.37939951,138.66,138.63,7.89324441]
[1764693878354,7.37939951,138.66,138.64,0.68]
[1764693878757,8.1,138.68,138.64,0.68]
[1764693878758,7.37939951,138.67,138.64,0.68]
[1764693878947,7.37939951,138.66,138.63,25.24685906]
[1764693879255,7.37939951,138.65,138.64,0.68]
[1764693879938,7.37939951,138.65,138.64,7.89292556]
[1764693881553,7.37939951,138.65,138.64,0.68]
[1764693881759,7.37939951,138.66,138.64,0.68]
[1764693882060,7.37939951,138.66,138.64,7.89255721]
[1764693882426,7.37939951,138.65,138.64,7.89255721]
[1764693882626,7.37939951,138.66,138.64,7.89255721]
[1764693883558,15.47939951,138.67,138.65,0.65]
[1764693883935,15.47939951,138.67,138.66,7.21188518]
[1764693884140,15.47939951,138.67,138.66,7.86188518]
[1764693884958,15.47939951,138.67,138.65,7.21227494]
[1764693885255,7.37939951,138.67,138.65,7.86227494]
[1764693885454,7.37939951,138.67,138.65,7.21227494]
[1764693885645,7.37939951,138.67,138.66,0.65]
[1764693885849,8.1,138.68,138.66,0.65]
[1764693886059,15.47939951,138.68,138.67,7.21136511]
[1764693886836,15.47939951,138.68,138.67,7.86136511]
[1764693887335,8.1,138.72,138.67,25.88977788]
[1764693887537,15.47939951,138.72,138.68,0.65]
[1764693888150,15.47939951,138.72,138.69,7.21032518]
[1764693888358,7.37939951,138.71,138.69,7.21032518]
[1764693888655,15.47939951,138.72,138.69,7.86032518]
[1764693888859,0.2,138.77,138.69,7.86032518]
[1764693888860,0.2,138.77,138.7,0.65]
[1764693889160,0.2,138.77,138.71,7.37939951]
[1764693889372,7.57939951,138.77,138.72,0.65]
[1764693889739,7.37939951,138.76,138.72,0.65]
[1764693889936,0.69,138.76,138.72,0.65]
[1764693890135,0.69,138.76,138.71,7.20928555]
[1764693890356,7.37939951,138.75,138.71,7.85928555]
[1764693890551,7.37939951,138.76,138.72,0.65]
[1764693890845,0.2,138.77,138.72,0.65]
[1764693890846,7.37939951,138.75,138.72,0.65]
[1764693892343,7.37939951,138.75,138.72,25.88060948]
[1764693892344,12.55032768,138.75,138.72,25.88060948]
[1764693892544,12.55032768,138.76,138.72,25.88060948]
[1764693892770,8.3,138.77,138.73,0.65]
[1764693893070,12.55032768,138.76,138.73,0.65]
[1764693893259,12.55032768,138.75,138.72,25.23060948]
[1764693893438,12.55032768,138.74,138.72,7.20869484]
[1764693893843,0.69,138.76,138.72,7.85869484]
[1764693894067,12.55032768,138.75,138.72,7.85869484]
[1764693894965,0.2,138.77,138.73,0.65]
[1764693895267,20.65032768,138.76,138.73,0.65]
[1764693895442,12.55032768,138.74,138.66,7.86177118]
[1764693895651,0.69,138.75,138.66,0.65]
[1764693896051,12.55032768,138.72,138.66,13.20032768]
[1764693896251,12.55032768,138.71,138.66,0.65]
[1764693896451,12.55032768,138.72,138.67,0.65]
[1764693897068,12.55032768,138.71,138.67,0.65]
[1764693898180,8.1,138.73,138.67,0.65]
[1764693898349,12.55032768,138.71,138.67,0.65]
[1764693898754,12.55032768,138.71,138.68,7.21084511]
[1764693899060,12.55032768,138.71,138.68,25.23795788]
[1764693899264,12.55032768,138.69,138.65,0.65]
[1764693899461,12.55032768,138.68,138.65,0.65]
[1764693899766,12.55032768,138.68,138.62,12.55032768]
[1764693899767,12.55032768,138.67,138.61,18.03540039]
[1764693899954,12.55032768,138.67,138.61,31.23572807]
[1764693900155,12.55032768,138.66,138.62,0.65]
[1764693900355,12.55032768,138.65,138.61,18.03540039]
[1764693900551,12.55032768,138.66,138.62,0.65]